bitfinex/quotes_ETHUSD_20240718
["timestamp","ask_amount","ask_price","bid_price","bid_amount"]
[1721269088580,5.93194,3410.7,3410.6,0.1482488]
[1721269088753,2.93194,3410.7,3410.6,0.1482488]
[1721269088960,5.93194,3410.7,3410.6,0.1482488]
[1721269089388,8.86388,3410.7,3410.6,0.1482488]
[1721269089589,9.750268,3410.7,3410.6,0.1482488]
[1721269090996,16.062608,3410.7,3410.6,0.1482488]
[1721269091203,23.269548,3410.7,3410.6,8.8e-06]
[1721269091411,18.577608,3410.7,3410.6,8.8e-06]
[1721269092597,13.130668,3410.7,3410.6,8.8e-06]
[1721269092788,9.15728,3410.7,3410.6,8.8e-06]
[1721269093780,18.24122,3410.7,3410.6,8.8e-06]
[1721269094980,21.17316,3410.7,3410.6,8.8e-06]
[1721269095340,25.39606,3410.7,3410.6,8.8e-06]
[1721269096129,28.328,3410.7,3410.6,8.8e-06]
[1721269096334,30.8648597,3410.7,3410.6,8.8e-06]
[1721269096879,38.4155807,3410.7,3410.6,8.8e-06]
[1721269097171,33.5419897,3410.7,3410.6,8.8e-06]
[1721269098438,33.5419897,3410.7,3408.2,2.3829]
[1721269098439,2.93384,3408.5,3408.2,2.3829]
[1721269099062,2.93384,3408.5,3407.2,3.0831988]
[1721269099063,2.93465,3407.6,3407.2,0.1482488]
[1721269100135,2.93472,3407.5,3407.2,0.1482488]
[1721269100442,6.087,3408.0,3407.2,0.1482488]
[1721269100443,3.0,3408.0,3407.2,0.1482488]
[1721269100650,2.93468,3407.6,3407.2,0.1482488]
[1721269100848,3.0,3407.5,3407.2,0.1482488]
[1721269101373,5.86974,3407.3,3407.2,0.1482488]
[1721269101577,8.86974,3407.3,3407.2,0.1482488]
[1721269103163,16.674146,3407.3,3407.2,0.1482488]
[1721269103355,20.159016,3407.3,3407.2,0.1482488]
[1721269103559,12.1863,3406.8,3406.7,0.0532019]
[1721269104012,12.1863,3406.8,3406.7,1.9e-06]
[1721269104013,22.3647,3406.8,3406.7,1.9e-06]
[1721269104168,8.64918,3405.6,3403.7,3.0862088]
[1721269104368,8.64918,3405.6,3404.2,2.315]
[1721269104369,9.824598,3405.6,3404.2,2.315]
[1721269104694,2.4831,3406.4,3404.2,2.315]
[1721269104695,2.93627,3405.7,3404.4,3.376]
[1721269104897,2.93568,3406.4,3404.4,3.376]
[1721269104898,3.0,3406.7,3405.4,2.315]
[1721269105105,5.93539,3406.7,3405.4,2.315]
[1721269105392,0.05097532,3406.8,3405.4,2.315]
[1721269105393,2.93533,3406.8,3405.4,5.25151]
[1721269105594,3.0,3407.2,3405.4,5.25151]
[1721269105595,3.0,3406.6,3405.6,0.53420338]
[1721269105761,2.93505,3407.1,3405.6,0.53420338]
[1721269105960,2.93513,3407.0,3405.6,3.47050338]
[1721269106278,2.93505,3407.1,3405.7,2.93623]
[1721269106489,3.39531633,3407.3,3405.8,2.93614]
[1721269106699,2.93496,3407.2,3405.9,3.57673734]
[1721269106998,2.93471,3407.5,3406.1,2.4049]
[1721269107494,2.93471,3407.5,3406.3,2.93573]
[1721269107704,2.9347,3407.5,3406.3,2.93573]
[1721269107996,0.46028002,3407.9,3406.4,2.93557]
[1721269108161,0.79973302,3407.9,3406.7,2.93537]
[1721269108355,0.79973302,3407.9,3406.5,3.229107]
[1721269108559,3.73410302,3407.9,3406.5,0.293557]
[1721269108757,3.73410302,3407.9,3406.6,2.93545]
[1721269108997,2.93454,3407.7,3406.5,0.293557]
[1721269109161,3.087,3407.5,3406.1,2.4049]
[1721269109363,0.6821273,3407.6,3406.1,2.4049]
[1721269109364,2.93511,3407.1,3406.1,2.4049]
[1721269109560,0.6821273,3407.6,3405.4,2.2863]
[1721269109561,2.93548,3406.6,3405.4,2.2863]
[1721269110081,3.0,3406.5,3405.4,2.2863]
[1721269110296,3.0,3406.5,3404.6,3.376]
[1721269110297,6.087,3406.5,3404.6,6.31319]
[1721269110470,2.93614,3405.9,3404.7,2.2863]
[1721269110698,2.93574,3406.3,3404.8,2.937]
[1721269110869,3.0,3406.2,3404.8,2.937]
[1721269111101,3.0,3406.4,3405.1,2.93676]
[1721269111369,2.93486,3407.4,3406.0,2.93597]
[1721269111714,2.4119,3408.4,3406.1,0.293597]
[1721269111914,2.4119,3408.4,3405.8,2.93609]
[1721269111915,2.93452,3407.8,3405.8,2.93609]
[1721269112201,2.93452,3407.8,3406.4,2.93564]
[1721269112402,2.93452,3407.8,3406.5,2.93554]
[1721269112700,2.93452,3407.8,3406.6,2.9354]
[1721269112903,2.93452,3407.8,3406.5,2.93554]
[1721269113105,2.93464,3407.6,3406.5,0.587127]
[1721269113307,0.33948,3407.7,3406.5,0.587127]
[1721269113512,3.087,3407.4,3405.6,2.3814]
[1721269113717,2.93516,3407.0,3405.6,5.31773]
[1721269113914,2.93538,3406.8,3405.6,5.31773]
[1721269114205,2.93517,3407.0,3405.6,5.31773]
[1721269114405,3.0,3406.9,3405.8,2.93614]
[1721269114574,5.93522,3406.9,3405.7,3.77069638]
[1721269114776,5.93522,3406.9,3405.8,2.93614]
[1721269114777,3.0,3406.9,3405.8,2.93614]
[1721269115126,2.93479,3407.4,3406.2,2.93581]
[1721269115127,3.0,3407.2,3406.2,2.93581]
[1721269115271,0.33948,3407.7,3406.7,2.93532]
[1721269115470,0.33948,3407.7,3406.8,2.93529]
[1721269115912,0.33948,3407.7,3406.8,2.93522]
[1721269116103,2.93419,3408.1,3406.8,2.93522]
[1721269116406,9.2445,3408.2,3406.9,2.9352]
[1721269116714,0.46023417,3408.4,3407.3,2.93485]
[1721269117568,0.46023417,3408.4,3406.6,5.26752]
[1721269117569,0.46023417,3408.4,3406.9,3.376]
[1721269117765,7.31,3409.3,3407.4,3.376]
[1721269118009,7.31,3409.3,3407.1,2.4477]
[1721269118010,7.31,3409.3,3408.0,5.8237]
[1721269118305,7.31,3409.3,3408.4,2.93391]
[1721269118468,2.93296,3409.6,3408.1,2.93411]
[1721269118667,6.02002,3409.5,3408.2,2.93408]
[1721269118916,2.93324,3409.2,3408.2,2.93408]
[1721269119210,3.22604,3409.9,3408.5,2.93384]
[1721269119419,2.93281,3409.7,3408.5,2.93384]
[1721269119870,2.9329,3409.6,3408.3,2.93399]
[1721269120384,2.93308,3409.4,3408.1,2.93414]
[1721269120574,2.93324,3409.2,3408.0,2.4477]
[1721269120998,0.886598,3409.3,3408.0,2.4477]
[1721269121169,3.886598,3409.3,3408.3,2.93399]
[1721269121385,0.886598,3409.3,3408.3,2.93399]
[1721269121695,2.93299,3409.5,3408.3,2.93399]
[1721269121879,3.0,3409.4,3408.3,2.93399]
[1721269122081,3.0,3409.6,3408.4,2.93385]
[1721269122287,6.68623756,3409.7,3408.4,2.93385]
[1721269122479,2.93291,3409.6,3408.4,2.93385]
[1721269122709,1.27059776,3409.6,3408.5,0.586787]
[1721269123010,0.46001756,3409.7,3408.6,0.05866857]
[1721269123225,7.31,3410.3,3408.9,2.93343]
[1721269123510,5.52722,3410.5,3409.2,2.9332]
[1721269123511,0.459958,3410.5,3409.2,2.9332]
[1721269123809,0.3392018,3410.4,3409.4,2.93303]
[1721269124175,0.3392018,3410.4,3409.5,2.93297]
[1721269124512,0.459958,3410.5,3409.6,2.99152675]
[1721269124811,0.459958,3410.5,3409.9,2.93259]
[1721269125031,7.31,3411.1,3409.9,2.93259]
[1721269125181,2.93124,3411.6,3410.3,2.93221]
[1721269125382,7.31,3411.7,3410.3,2.93221]
[1721269125383,0.45979562,3411.3,3410.5,2.93211]
[1721269125582,0.45979562,3411.3,3410.4,2.9322]
[1721269125802,0.45979562,3411.3,3410.3,5.86456]
[1721269125993,0.45979562,3411.3,3409.3,2.4419]
[1721269126203,0.45979562,3411.3,3410.5,2.93211]
[1721269127011,0.45979562,3411.3,3409.7,2.93279]
[1721269127012,2.93167,3411.1,3409.7,2.93279]
[1721269127218,2.93167,3411.1,3409.0,2.9334]
[1721269127219,2.93195,3410.7,3409.0,2.9334]
[1721269127422,2.93195,3410.7,3408.5,2.4955]
[1721269127423,2.9322,3410.5,3408.5,2.4955]
[1721269127585,0.586415,3410.4,3409.0,2.9334]
[1721269127787,2.93235,3410.3,3408.9,2.93347]
[1721269127985,2.93255,3410.0,3408.6,3.18329]
[1721269128189,3.0,3410.2,3408.5,2.4955]
[1721269128190,3.0,3409.9,3408.5,2.4955]
[1721269128387,3.637,3410.1,3408.4,2.93392]
[1721269128690,3.0,3410.0,3408.4,2.93392]
[1721269129035,2.93289,3409.6,3408.1,2.93417]
[1721269129198,2.93307,3409.4,3408.1,2.93417]
[1721269129389,0.886596,3409.3,3408.3,2.93399]
[1721269129940,0.886596,3409.3,3407.3,2.415]
[1721269129941,2.93361,3408.8,3407.3,2.415]
[1721269130086,3.087,3409.0,3407.0,3.566248]
[1721269130286,0.8434,3409.2,3406.6,2.415]
[1721269130287,2.93414,3408.2,3406.8,2.93527]
[1721269130536,2.93428,3408.0,3406.6,5.35047]
[1721269130853,2.93472,3407.5,3406.0,5.36002]
[1721269131148,2.93496,3407.2,3406.0,2.4241]
[1721269131318,2.93496,3407.2,3406.0,0.536026]
[1721269131319,0.390821,3407.1,3406.0,0.536026]
[1721269131514,3.390821,3407.1,3405.7,2.93623]
[1721269131687,3.390821,3407.1,3405.5,0.09052382]
[1721269131890,3.390821,3407.1,3405.8,2.93609]
[1721269132198,3.390821,3407.1,3405.8,2.93608]
[1721269132730,10.397,3408.1,3405.6,3.546]
[1721269132936,10.397,3408.1,3406.8,2.9353]
[1721269132937,3.0,3408.0,3406.8,2.9353]
[1721269133221,2.93383,3408.6,3405.6,6.633]
[1721269133222,2.4252,3408.8,3406.9,0.05869951]
[1721269133429,2.4252,3408.8,3407.2,2.93489]
[1721269133430,2.93377,3408.6,3407.2,2.93489]
[1721269133648,5.652134,3408.8,3407.2,2.93489]
[1721269133826,0.2934,3408.7,3407.2,2.93489]
[1721269134130,5.652134,3408.8,3407.3,2.93487]
[1721269134131,1.9123084,3408.6,3407.3,2.93487]
[1721269134495,1.9123084,3408.6,3407.4,2.93477]
[1721269134698,1.6189084,3408.6,3407.6,2.93454]
[1721269135109,2.718554,3408.8,3407.6,2.93454]
[1721269135702,5.652144,3408.8,3407.6,2.93454]
[1721269136040,2.718554,3408.8,3407.6,2.93454]
[1721269136248,1.179996,3409.3,3407.9,2.93427]
[1721269136450,3.819826,3409.3,3408.0,2.93423]
[1721269136813,0.886596,3409.3,3408.0,2.93423]
[1721269137045,0.9836606,3409.2,3407.0,3.087]
[1721269137352,0.9836606,3409.2,3408.3,2.93401]
[1721269137925,9.7674,3410.2,3408.4,2.93392]
[1721269138443,2.9329,3409.6,3408.4,2.93392]
[1721269139119,2.93298,3409.5,3408.2,2.93407]
[1721269139342,3.0,3409.4,3408.2,2.93407]
[1721269139507,3.0,3409.4,3407.9,2.3586]
[1721269139708,3.593298,3409.4,3408.2,2.93405]
[1721269140451,3.593298,3409.4,3408.0,0.23586]
[1721269140810,6.526378,3409.4,3408.2,2.93407]
[1721269141009,3.593298,3409.4,3408.2,2.93407]
[1721269141212,0.593298,3409.4,3407.7,2.93452]
[1721269141445,6.087,3409.5,3407.7,2.93452]
[1721269141446,3.0190298,3409.3,3407.7,2.93452]
[1721269141853,3.0,3409.2,3407.7,2.93452]
[1721269142030,2.93342,3409.0,3407.3,2.4567]
[1721269142350,3.0,3408.9,3407.3,2.4567]
[1721269142533,3.0,3408.9,3407.6,2.9346]
[1721269142844,3.0,3408.9,3407.9,2.93434]
[1721269142845,0.593342,3408.8,3407.9,2.93434]
[1721269143257,0.593342,3408.8,3408.0,2.93426]
[1721269143459,3.0,3409.1,3407.4,2.93475]
[1721269143760,3.0,3409.2,3408.2,2.93408]
[1721269144074,3.0,3409.2,3408.2,2.93406]
[1721269144855,3.0,3409.2,3408.2,5.86809]
[1721269145153,3.0,3409.2,3408.3,2.93392]
[1721269145311,3.92454898,3409.2,3408.4,2.93391]
[1721269145852,3.92454898,3409.2,3408.2,2.93404]
[1721269146148,3.92454898,3409.2,3407.3,2.4567]
[1721269146149,3.92454898,3409.2,3408.4,2.93386]
[1721269147012,2.3964,3410.0,3408.8,2.93351]
[1721269147217,2.3964,3410.0,3409.0,2.93338]
[1721269147523,2.93221,3410.4,3409.3,2.93315]
[1721269147725,0.586425,3410.3,3409.3,2.93315]
[1721269147953,3.518725,3410.3,3409.3,2.93315]
[1721269148113,3.518725,3410.3,3409.2,2.93317]
[1721269148317,0.586425,3410.3,3409.2,2.93317]
[1721269148750,3.518775,3410.3,3409.2,2.93317]
[1721269148928,0.3518775,3410.2,3409.2,2.93317]
[1721269149428,0.3518775,3410.2,3409.3,2.93313]
[1721269149625,0.3518775,3410.2,3409.4,2.93303]
[1721269149828,2.93208,3410.6,3409.2,2.93322]
[1721269150147,2.93231,3410.3,3409.2,2.93322]
[1721269150357,3.0,3410.2,3409.2,2.93322]
[1721269150527,3.0,3410.2,3409.3,2.93311]
[1721269150729,3.0,3410.5,3409.5,2.93296]
[1721269151073,0.56887,3410.4,3409.5,2.93296]
[1721269151214,3.0,3410.6,3409.5,2.93296]
[1721269151413,2.93222,3410.4,3409.3,2.93314]
[1721269151646,3.0,3410.3,3409.4,2.93305]
[1721269151964,2.93221,3410.4,3409.2,2.93319]
[1721269152162,3.0,3410.3,3409.3,2.93314]
[1721269152660,3.0,3410.3,3409.4,2.93305]
[1721269152817,1.463974,3410.5,3409.6,2.93288]
[1721269154332,3.0,3410.6,3409.7,2.93277]
[1721269154668,3.0,3410.6,3409.8,2.93271]
[1721269154820,3.0,3410.6,3409.9,2.93263]
[1721269155015,2.3953,3410.7,3409.9,2.93263]
[1721269155333,3.0,3411.0,3409.9,2.93263]
[1721269155517,2.126159,3410.9,3410.1,2.93246]
[1721269156276,2.126159,3410.9,3410.4,2.93218]
[1721269156564,2.73309562,3411.3,3410.1,2.93238]
[1721269156859,2.73309562,3411.3,3410.2,2.93233]
[1721269157024,2.73309562,3411.3,3410.3,2.93227]
[1721269157223,2.73309562,3411.3,3410.4,2.93218]
[1721269158175,2.73309562,3411.3,3410.6,2.93197]
[1721269158658,0.45979562,3411.3,3410.7,2.93194]
[1721269158869,0.45979562,3411.3,3410.8,2.93185]
[1721269159752,0.45979562,3411.3,3409.4,2.2984]
[1721269159928,0.33911256,3411.2,3410.3,2.93228]
[1721269160270,2.292,3411.1,3410.3,2.93221]
[1721269160424,2.292,3411.1,3410.4,2.9322]
[1721269160766,2.292,3411.1,3410.1,2.93245]
[1721269160921,2.292,3411.1,3410.3,2.93228]
[1721269160922,2.89422582,3411.1,3410.3,2.93228]
[1721269161660,3.22519,3410.9,3409.5,3.1628]
[1721269161861,2.93201,3410.7,3409.5,0.22984]
[1721269162065,2.93201,3410.7,3409.4,2.93305]
[1721269162594,2.93249,3410.1,3408.8,2.93355]
[1721269162876,2.93265,3409.9,3408.7,2.93366]
[1721269163529,5.93272,3409.8,3408.3,2.93397]
[1721269163728,5.4598,3409.7,3407.9,2.93427]
[1721269163958,5.4598,3409.7,3408.0,2.9342]
[1721269163959,2.93324,3409.2,3408.0,2.9342]
[1721269164360,2.93324,3409.2,3407.8,2.93443]
[1721269164569,0.293324,3409.2,3407.9,0.293443]
[1721269164724,3.0,3409.6,3407.8,2.93438]
[1721269164928,5.3728,3409.7,3407.9,2.93434]
[1721269165126,3.0,3409.9,3408.8,2.93349]
[1721269165331,3.293249,3410.0,3409.0,2.93339]
[1721269165565,3.0,3409.9,3409.0,2.93339]
[1721269165773,3.3293249,3409.9,3409.0,2.93339]
[1721269165930,0.3293249,3409.9,3409.0,2.93339]
[1721269166134,2.3728,3410.4,3409.5,2.93295]
[1721269166442,2.93177,3410.9,3409.7,2.93279]
[1721269167075,2.7299,3411.0,3409.4,2.93303]
[1721269167295,2.93204,3410.6,3408.9,2.93342]
[1721269167570,2.4365,3409.7,3408.4,2.93391]
[1721269167730,0.24365,3409.6,3408.4,2.93391]
[1721269167925,3.24365,3409.6,3408.5,2.93383]
[1721269168132,3.24365,3409.6,3408.6,2.93368]
[1721269169138,3.0,3409.6,3408.9,2.93347]
[1721269169465,2.4365,3409.7,3408.9,2.93347]
[1721269169845,3.0,3410.1,3409.3,2.93313]
[1721269170060,2.3568,3410.3,3409.1,2.93328]
[1721269170061,8.28911,3410.3,3409.1,2.93328]
[1721269170242,8.28911,3410.3,3409.1,2.93331]
[1721269170243,0.828911,3410.2,3409.1,2.93331]
[1721269170443,3.828911,3410.2,3409.1,2.93331]
[1721269170673,3.828911,3410.2,3409.2,2.93323]
[1721269170911,3.0,3410.2,3409.2,2.93323]
[1721269171042,2.3568,3410.3,3409.2,2.93323]
[1721269171243,2.3568,3410.3,3409.3,2.93308]
[1721269171555,2.3568,3410.3,3409.4,2.93306]
[1721269171873,2.3568,3410.3,3409.1,2.93331]
[1721269172181,2.3568,3410.3,3409.4,2.93305]
[1721269172383,6.22534,3410.7,3409.6,2.93288]
[1721269172544,2.93204,3410.6,3409.5,2.93296]
[1721269172879,3.0,3410.5,3409.6,2.93287]
[1721269173085,3.0,3410.7,3409.6,2.93287]
[1721269173243,2.3568,3410.8,3409.8,2.93264]
[1721269173442,2.3568,3410.8,3409.8,5.86528]
[1721269173903,0.60222582,3411.1,3409.9,2.93261]
[1721269174068,0.60222582,3411.1,3410.1,2.93243]
[1721269174246,0.60222582,3411.1,3410.1,2.93241]
[1721269174581,0.62486614,3411.0,3409.7,2.93279]
[1721269175078,0.62486614,3411.0,3409.1,0.540801]
[1721269175079,2.93178,3410.9,3409.8,2.9327]
[1721269175466,3.0,3410.8,3409.9,2.93263]
[1721269175670,0.62486614,3411.0,3410.1,2.93245]
[1721269175671,3.62486614,3411.0,3410.1,2.93245]
[1721269175843,0.62486614,3411.0,3410.1,2.93245]
[1721269176187,0.7158712,3410.9,3410.1,2.93245]
[1721269176885,3.62486614,3411.0,3410.1,2.93245]
[1721269177066,0.62486614,3411.0,3410.1,2.93245]
[1721269177458,2.93184,3410.9,3409.7,2.9328]
[1721269177660,0.62486614,3411.0,3409.1,3.474051]
[1721269177661,6.22526,3410.8,3409.5,2.93296]
[1721269177890,3.0,3410.8,3409.3,2.93315]
[1721269178191,0.62486614,3411.0,3409.3,2.93315]
[1721269178192,2.93221,3410.4,3409.3,2.93315]
[1721269178563,2.93203,3410.6,3409.3,2.93315]
[1721269178879,3.0,3410.5,3409.8,2.93266]
[1721269179065,0.36248661,3410.7,3409.8,2.93266]
[1721269179252,0.36248661,3410.7,3409.6,2.93288]
[1721269179449,0.32943366,3410.6,3409.1,3.914801]
[1721269179652,0.32943366,3410.6,3409.7,2.93272]
[1721269180386,0.32943366,3410.6,3409.1,3.914801]
[1721269180387,0.62486614,3411.0,3409.8,2.93271]
[1721269180590,3.00839562,3411.3,3409.1,3.627801]
[1721269180774,2.71499562,3411.3,3410.3,2.93227]
[1721269182070,3.0,3411.2,3410.4,2.93218]
[1721269183682,0.45979562,3411.3,3410.4,2.93218]
[1721269184253,0.63910556,3411.2,3410.2,2.93235]
[1721269184561,2.93162,3411.1,3410.0,2.93253]
[1721269185092,2.93161,3411.1,3409.8,2.9327]
[1721269185299,2.93175,3411.0,3409.8,2.9327]
[1721269185498,2.93175,3411.0,3409.8,3.519256]
[1721269185499,0.65024656,3410.9,3409.8,3.519256]
[1721269185821,2.2587,3410.8,3409.6,2.93286]
[1721269185981,2.93205,3410.6,3409.6,2.93286]
[1721269186509,2.93205,3410.6,3409.4,2.93305]
[1721269186880,5.5521,3410.8,3409.0,2.93338]
[1721269187094,2.93263,3410.0,3408.7,2.93362]
[1721269187268,2.93281,3409.7,3408.6,2.93375]
[1721269187476,0.586505,3409.9,3408.6,2.93375]
[1721269187477,3.0,3409.6,3408.6,2.93375]
[1721269187706,2.93298,3409.5,3408.3,2.93395]
[1721269188008,2.93307,3409.4,3407.7,3.374]
[1721269188173,2.93316,3409.3,3408.2,2.93409]
[1721269188373,3.455596,3409.3,3408.2,3.520927]
[1721269189216,2.2912,3409.4,3408.3,2.93399]
[1721269189396,7.14869106,3409.7,3408.5,2.93382]
[1721269189397,3.0,3409.7,3408.5,2.93382]
[1721269189595,3.0,3409.7,3408.6,2.93373]
[1721269189927,1.21587106,3410.2,3409.0,2.93339]
[1721269190101,11.10842463,3410.4,3409.3,2.93307]
[1721269190102,9.5882,3410.4,3409.3,2.93307]
[1721269190302,2.93232,3410.3,3409.2,2.93322]
[1721269190877,2.2782,3410.4,3409.3,2.93313]
[1721269191082,1.21587106,3410.7,3409.5,2.93297]
[1721269191338,1.21587106,3410.7,3409.4,0.293313]
[1721269191504,4.26561762,3410.9,3409.8,2.93271]
[1721269192023,5.98153656,3410.9,3409.8,2.93271]
[1721269192232,4.14774106,3410.8,3409.6,2.93289]
[1721269192520,4.21587106,3410.7,3409.6,3.5488153]
[1721269193217,1.21587106,3410.6,3409.4,3.226363]
[1721269193426,2.93213,3410.5,3409.4,3.226363]
[1721269194524,7.14782106,3410.7,3409.5,2.93294]
[1721269194822,4.21587106,3410.7,3409.5,2.93294]
[1721269194997,4.21587106,3410.7,3409.6,0.6159303]
[1721269195194,4.21587106,3410.7,3409.6,3.5488003]
[1721269195195,3.0,3410.7,3409.6,3.5488003]
[1721269195396,4.21587106,3410.7,3409.6,3.5488003]
[1721269195810,7.14782106,3410.7,3409.6,3.5488003]
[1721269196011,5.93195,3410.7,3409.6,3.5488003]
[1721269196195,2.57739289,3410.6,3409.4,2.93305]
[1721269196625,1.21587106,3410.5,3409.5,2.93297]
[1721269196903,2.57739289,3410.6,3409.5,2.93297]
[1721269197105,5.50942289,3410.6,3409.5,2.93297]
[1721269198648,4.29355183,3410.6,3409.5,2.93297]
[1721269198809,2.57739289,3410.6,3409.6,3.519491]
[1721269199008,1.36152183,3410.6,3409.6,3.519491]
[1721269199207,2.57739289,3410.6,3409.6,3.519491]
[1721269199430,1.36152183,3410.6,3409.6,3.519491]
[1721269199649,2.57739289,3410.6,3409.6,3.519491]
[1721269199940,2.57739289,3410.6,3409.6,0.586611]
[1721269200163,1.04053609,3410.5,3409.6,2.93288]
[1721269200347,1.36152183,3410.6,3409.6,2.93288]
[1721269201306,1.36152183,3410.6,3409.4,2.93306]
[1721269201307,1.36152183,3410.6,3408.9,2.93344]
[1721269201526,2.57739289,3410.6,3408.9,2.93344]
[1721269201731,1.36152183,3410.6,3409.3,2.93309]
[1721269201931,5.50943289,3410.6,3409.4,0.293309]
[1721269202164,4.14808106,3410.4,3409.1,2.93326]
[1721269202343,1.21587106,3410.2,3409.2,2.93317]
[1721269202865,1.21587106,3410.4,3409.5,2.93297]
[1721269203077,1.21587106,3410.5,3409.6,2.93289]
[1721269203379,2.57739289,3410.6,3409.7,2.9328]
[1721269204092,1.21587106,3410.5,3409.7,2.9328]
[1721269204255,1.21587106,3410.4,3409.4,2.93304]
[1721269204580,1.21587106,3410.3,3409.5,2.93296]
[1721269204756,1.21587106,3410.4,3409.5,2.93296]
[1721269205545,1.21587106,3410.4,3409.6,2.93287]
[1721269205886,1.21587106,3410.3,3409.6,2.93287]
[1721269206380,1.21587106,3410.3,3409.4,2.933]
[1721269207148,1.21587106,3410.3,3409.5,2.93296]
[1721269207666,1.21587106,3410.4,3409.6,2.93288]
[1721269208263,1.21587106,3410.4,3409.7,2.93278]
[1721269209305,1.21587106,3410.4,3409.5,2.93298]
[1721269209471,1.21587106,3410.3,3409.3,2.93312]
[1721269209817,1.21587106,3410.2,3409.4,2.93306]
[1721269209995,2.35239479,3410.4,3409.4,2.93306]
[1721269209996,1.21587106,3410.3,3409.4,2.93306]
[1721269210172,1.21587106,3410.1,3409.4,2.93306]
[1721269210375,1.21587106,3410.2,3409.4,2.93306]
[1721269210881,1.21587106,3410.1,3409.3,2.93314]
[1721269211302,1.21587106,3410.1,3409.5,2.93296]
[1721269211482,1.21587106,3410.2,3409.5,2.93296]
[1721269212800,1.21587106,3410.2,3409.7,2.9328]
[1721269212982,1.21587106,3410.3,3409.8,2.93271]
[1721269213181,1.21587106,3410.4,3409.8,0.293271]
[1721269213418,1.21587106,3410.9,3410.3,2.93229]
[1721269213725,1.21587106,3411.1,3410.3,2.93229]
[1721269213937,1.21587106,3411.1,3410.4,2.93219]
[1721269214077,1.21587106,3410.9,3410.4,2.93219]
[1721269214277,1.21587106,3411.0,3410.4,2.93219]
[1721269214517,1.21587106,3411.0,3410.5,2.93212]
[1721269214684,1.21587106,3411.0,3410.4,2.9322]
[1721269215375,1.21587106,3411.0,3410.5,2.93211]
[1721269215574,25.30698,3411.6,3410.5,0.586446]
[1721269215575,1.21587106,3411.3,3410.5,0.586446]
[1721269215797,8.52587106,3411.6,3411.3,2.93143]
[1721269216113,1.52465652,3411.8,3411.3,2.93143]
[1721269216114,1.21587106,3411.8,3411.3,2.93143]
[1721269216292,1.21587106,3411.8,3411.4,2.93134]
[1721269216912,1.21587106,3411.8,3411.2,2.93151]
[1721269217124,1.21587106,3411.7,3410.4,2.93219]
[1721269217278,1.21587106,3411.7,3410.2,3.374]
[1721269217279,1.21587106,3411.2,3410.5,2.93211]
[1721269217800,1.5242505,3411.4,3410.1,2.4274]
[1721269217801,1.21587106,3411.4,3410.9,2.93176]
[1721269218123,1.21587106,3411.3,3410.9,2.93172]
[1721269218324,1.21587106,3411.5,3411.0,2.93168]
[1721269218477,0.27405276,3411.8,3411.0,2.93168]
[1721269218478,1.21587106,3411.6,3411.0,2.93168]
[1721269218679,1.48992382,3411.8,3411.0,2.93168]
[1721269219004,1.48992382,3411.8,3411.2,2.93149]
[1721269219199,1.5242505,3412.0,3410.2,3.374]
[1721269219200,1.51728849,3411.7,3410.2,2.9323]
[1721269219399,1.51728849,3411.7,3410.9,2.93175]
[1721269219400,1.21587106,3411.6,3410.9,2.93175]
[1721269219617,1.21587106,3411.6,3411.0,2.93168]
[1721269219800,1.21587106,3411.6,3410.8,2.9318]
[1721269219977,1.51728849,3411.7,3411.0,2.93168]
[1721269220177,1.21587106,3411.8,3411.0,3.518041]
[1721269220403,11.52587106,3411.9,3411.1,2.93152]
[1721269220901,11.52587106,3411.9,3411.2,2.93151]
[1721269221213,8.52587106,3411.9,3411.2,2.93151]
[1721269221534,8.52587106,3411.9,3411.5,2.93125]
[1721269221535,7.31,3411.9,3411.5,2.93125]
[1721269223103,7.31,3411.9,3411.5,3.517518]
[1721269223293,7.31,3411.9,3411.6,0.05861797]
[1721269223617,1.21587106,3412.6,3411.8,2.93094]
[1721269223817,2.4222,3412.7,3411.8,2.93094]
[1721269224923,3.0,3412.7,3411.8,2.93094]
[1721269225121,4.21587106,3412.8,3412.0,2.93082]
[1721269225330,0.57379762,3412.7,3411.8,2.93094]
[1721269225536,3.57379762,3412.7,3411.2,3.374]
[1721269225737,3.57379762,3412.7,3410.2,3.0]
[1721269225738,1.21587106,3412.4,3410.9,2.93175]
[1721269225945,2.93076,3412.1,3410.9,2.93175]
[1721269226091,2.93076,3412.1,3410.4,2.9322]
[1721269226092,1.63053417,3412.0,3410.4,2.9322]
[1721269226288,2.93109,3411.7,3410.5,2.93204]
[1721269226849,2.93109,3411.7,3410.6,2.932]
[1721269226850,2.93112,3411.7,3410.6,2.932]
[1721269227062,3.54337106,3411.9,3410.6,2.93202]
[1721269227063,2.93118,3411.6,3410.6,2.93202]
[1721269227222,0.41470511,3411.5,3410.6,2.93202]
[1721269227775,2.3275,3411.9,3410.4,2.93218]
[1721269227922,7.31,3412.1,3411.2,2.93149]
[1721269228108,2.4653,3412.4,3411.4,2.93131]
[1721269228510,2.4653,3412.4,3411.3,2.93143]
[1721269228720,2.4653,3412.4,3411.4,2.93133]
[1721269228909,4.06685976,3412.4,3411.4,2.93133]
[1721269229112,10.24032,3412.6,3411.4,2.93133]
[1721269229341,10.24032,3412.6,3411.3,2.93136]
[1721269229342,3.0,3412.5,3411.3,2.93136]
[1721269229562,3.0,3412.5,3411.7,2.93103]
[1721269229716,3.0,3412.5,3411.5,2.93123]
[1721269230047,3.0,3412.5,3410.9,2.3643]
[1721269230048,3.0,3412.5,3411.2,2.93151]
[1721269230223,3.0,3412.5,3411.7,2.93104]
[1721269230738,3.0,3412.5,3411.8,2.93099]